lending/lending_fUSD_20241025
["ID","MTS","AMOUNT","RATE_DAILY","PERIOD"]
[340801815,1729853439703,-14394.0914693,0.00052321,11]
[340801816,1729853439712,-154.62,0.0005233,120]
[340801817,1729853439722,-151.0,0.0005233,120]
[340801818,1729853439736,-151.0,0.0005233,120]
[340801819,1729853439745,-33586.2134284,0.0005233,11]
[340801820,1729853439755,-4930.23818213,0.0005233,11]
[340801821,1729853439765,-471.766759,0.0005233,120]
[340801822,1729853439775,-471.766759,0.0005233,120]
[340801823,1729853439785,-78504.9430442,0.00052331,62]
[340801824,1729853439795,-6679.26249325,0.00052331,70]
[340801825,1729853439804,-721.56472,0.00052331,120]
[340801826,1729853439814,-721.56472,0.00052331,120]
[340801827,1729853439824,-151.0,0.00052331,120]
[340801829,1729853439835,-2254.07365957,0.00052331,11]
[340801831,1729853439860,-417.88768106,0.00052224,120]
[340801833,1729853439869,-3412.67068423,0.00052331,11]
[340801835,1729853439882,-4129.66005412,0.00052331,11]
[340801851,1729853440179,-1089.22503518,0.00052331,11]
[340801852,1729853440191,-17902.5535055,0.00052331,11]
[340801853,1729853440201,-24651.1909106,0.00052331,11]
[340801854,1729853440212,-500.0,0.0005234,120]
[340801855,1729853440227,-2164.75,0.0005234,120]
[340801856,1729853440237,-500.0,0.0005234,120]
[340801857,1729853440248,-500.10636998,0.0005234,120]
[340801858,1729853440259,-536.72917497,0.0005234,120]
[340801859,1729853440270,-165.97136124,0.0005234,120]
[340801860,1729853440280,-309.9872354,0.0005234,120]
[340801861,1729853440290,-500.0,0.0005234,120]
[340801862,1729853440300,-500.0,0.0005234,120]
[340801863,1729853440311,-500.0,0.0005234,120]
[340801864,1729853440321,-500.0,0.0005234,120]
[340801865,1729853440332,-150.0,0.0005234,120]
[340801866,1729853440342,-322.63380406,0.0005234,120]
[340801867,1729853440353,-1039.34,0.0005234,120]
[340801868,1729853440363,-500.0,0.0005234,120]
[340801869,1729853440373,-539.55307489,0.0005234,120]
[340801871,1729853440384,-500.0,0.0005234,120]
[340801872,1729853440394,-508.11079369,0.0005234,120]
[340801873,1729853440403,-499.97497496,0.0005234,120]
[340801874,1729853440413,-502.17261982,0.0005234,120]
[340801875,1729853440423,-500.0,0.0005234,120]
[340801876,1729853440433,-517.54321308,0.0005234,120]
[340801877,1729853440444,-502.4513973,0.0005234,120]
[340801878,1729853440454,-500.9471151,0.0005234,120]
[340801879,1729853440463,-500.0,0.0005234,120]
[340801880,1729853440474,-501.99887374,0.0005234,120]
[340801881,1729853440483,-500.0,0.0005234,120]
[340801882,1729853440493,-503.21324535,0.0005234,120]
[340801883,1729853440505,-500.0,0.0005234,120]
[340801884,1729853440515,-500.0,0.0005234,120]
[340801885,1729853440524,-558.95670519,0.0005234,120]
[340801886,1729853440534,-500.0,0.0005234,120]
[340801887,1729853440543,-843.74,0.0005234,120]
[340801888,1729853440553,-502.94704324,0.0005234,120]
[340801889,1729853440563,-500.0,0.0005234,120]
[340801890,1729853440572,-527.63380315,0.0005234,120]
[340801891,1729853440583,-529.48551954,0.0005234,120]
[340801892,1729853440593,-614.46578449,0.0005234,120]
[340801893,1729853440604,-521.19508686,0.0005234,120]
[340801894,1729853440614,-3907.48786554,0.0005234,120]
[340802079,1729854533216,-242.00165177,0.00015242,2]
[340802080,1729854533241,-160.41,0.00015342,2]
[340802081,1729854533270,-161.58,0.00015342,2]
[340802082,1729854533292,-248.0,0.000168,2]
[340802083,1729854533313,-278.00834823,0.00019725,2]
[340802098,1729854632089,-157.88923212,0.00017244,2]
[340802099,1729854632100,-300.0,0.00019725,2]
[340802100,1729854632111,-160.41,0.00026401,2]
[340802101,1729854632121,-150.99,0.00026401,2]
[340802102,1729854632132,-499.99,0.00035616,2]
[340802103,1729854632142,-161.58,0.00035616,2]
[340802104,1729854632153,-160.41,0.0003746,2]
[340802105,1729854632164,-1526.86,0.0003746,10]
[340802106,1729854632173,-560.0,0.00041384,2]
[340802107,1729854632183,-450.0,0.00041384,2]
[340802108,1729854632193,-624.72600011,0.00041384,2]
[340802109,1729854632210,-187.27399989,0.00041384,2]
[340802110,1729854632221,-1245.0,0.00041384,2]
[340802111,1729854632231,-209.895,0.00041384,2]
[340802112,1729854632246,-571.23,0.00041384,2]
[340802113,1729854632258,-9999.99,0.00041384,2]
[340802114,1729854632270,-150.99,0.00041384,2]
[340802115,1729854632281,-150.0,0.00041957,2]
[340802116,1729854632291,-5884.0,0.00041957,2]
[340802117,1729854632302,-208.0,0.0004202,2]
[340802118,1729854632314,-150.0,0.000428,2]
[340802119,1729854632324,-150.0,0.000428,52]
[340802120,1729854632336,-208.0,0.0004344,2]
[340802121,1729854632347,-502.955184,0.00044,57]
[340802122,1729854632358,-208.0,0.0004486,30]
[340802123,1729854632371,-760.83,0.00044964,2]
[340802124,1729854632385,-152.0,0.00045781,3]
[340802125,1729854632396,-208.0,0.0004628,30]
[340802126,1729854632408,-150.19,0.00046372,2]
[340802127,1729854632420,-3231.42,0.00046415,120]
[340802128,1729854632430,-3682.18,0.00046453,2]
[340802129,1729854632442,-183.36,0.00046497,120]
[340802130,1729854632453,-173.866,0.00046497,2]
[340802131,1729854632463,-173.866,0.00046497,2]
[340802132,1729854632475,-173.866,0.00046497,2]
[340802133,1729854632486,-173.866,0.00046497,2]
[340802134,1729854632497,-1000.0,0.00046782,2]
[340802135,1729854632508,-250.0,0.00046788,120]
[340802136,1729854632519,-177.04,0.00046825,120]
[340802137,1729854632529,-250.0,0.0004697,120]
[340802138,1729854632540,-760.83,0.00047228,2]
[340802139,1729854632553,-250.0,0.00047567,120]
[340802140,1729854632563,-208.0,0.000477,30]
[340802141,1729854632575,-463.73,0.0004773,2]
[340802142,1729854632586,-164.0,0.00047739,2]
[340802143,1729854632597,-150.0,0.00047856,2]
[340802144,1729854632609,-632.75,0.00048257,2]
[340802145,1729854632620,-8657.69,0.00048275,2]
[340802146,1729854632631,-182.81,0.00048328,120]
[340802147,1729854632641,-160.41,0.00048518,2]
[340802148,1729854632652,-359.153,0.00048913,85]
[340802149,1729854632662,-514.96,0.0004904,2]
[340802150,1729854632672,-208.0,0.0004912,30]
[340802151,1729854632683,-150.0,0.00049226,2]
[340802152,1729854632698,-760.83,0.00049492,2]
[340802153,1729854632708,-167.0,0.0004965,2]
[340802154,1729854632719,-164.02,0.0004971,2]
[340802155,1729854632729,-1240.0,0.0005,10]
[340802156,1729854632739,-165.0,0.0005,120]
[340802157,1729854632750,-208.0,0.0005054,30]
[340802158,1729854632938,-331.68554064,0.000507,2]
[340802159,1729854632951,-152.0,0.0005076,4]
[340802160,1729854632961,-902.58423043,0.00050971,14]
[340802161,1729854632971,-500.0,0.00050971,120]
[340802162,1729854632981,-500.0,0.00050971,120]
[340802163,1729854632991,-500.0,0.00050971,120]
[340802164,1729854633003,-167.0,0.00051289,2]
[340802165,1729854633012,-514.96,0.00051492,2]
[340802166,1729854633022,-2095.3129,0.00051526,2]
[340802167,1729854633031,-9390.52638349,0.00051626,7]
[340802168,1729854633043,-475.4141956,0.00051626,7]
[340802169,1729854633055,-320.25724888,0.00051626,7]
[340802170,1729854633069,-344.33408279,0.00051626,7]
[340802171,1729854633090,-1914.03894294,0.00051626,7]
[340802172,1729854633102,-571.52115498,0.00051626,7]
[340802173,1729854633114,-684.1,0.00051626,7]
[340802176,1729854638254,-1085.0,0.00041957,2]
[340802177,1729854638265,-1085.0,0.00044957,2]
[340802178,1729854638274,-86299.80799132,0.00051626,7]
[340802179,1729854638284,-80884.64926658,0.00051626,2]
[340802180,1729854638295,-151.32328344,0.00051673,10]
[340802181,1729854638304,-500.0,0.00051673,2]
[340802182,1729854638314,-760.83,0.00051756,2]
[340802183,1729854638324,-7948.17,0.00051838,120]
[340802184,1729854638333,-1997.57217753,0.0005186,15]
[340802185,1729854638343,-208.0,0.0005196,30]
[340802186,1729854638354,-4591.37750323,0.0005199,11]
[340802187,1729854638366,-12499.99,0.00052,120]
[340802188,1729854638376,-12499.99,0.00052,120]
[340802189,1729854638386,-5242.64548371,0.00052,7]
[340802190,1729854638397,-12500.0,0.00052,120]
[340802191,1729854638407,-12500.0,0.00052,120]
[340802192,1729854638418,-12500.0,0.00052,120]
[340802193,1729854638428,-12500.0,0.00052,120]
[340802194,1729854638438,-500.0,0.00052054,120]
[340802195,1729854638447,-610.05691241,0.00052054,120]
[340802196,1729854638457,-446.37205995,0.00052054,120]
[340802197,1729854638466,-500.0,0.00052054,120]
[340802198,1729854638476,-341.10075394,0.00052054,120]
[340802199,1729854638486,-500.0,0.00052054,120]
[340802200,1729854638496,-500.0,0.00052054,120]
[340802201,1729854638505,-500.0,0.00052054,120]
[340802202,1729854638515,-500.0,0.00052054,120]
[340802203,1729854638525,-1564.44,0.00052054,120]
[340802204,1729854638535,-1768.28,0.00052054,120]
[340802205,1729854638545,-696.07,0.00052054,120]
[340802206,1729854638554,-577.26592224,0.00052054,120]
[340802207,1729854638564,-1817.52,0.00052054,120]
[340802208,1729854638575,-5171.08,0.00052054,120]
[340802209,1729854638586,-427.52140716,0.00052054,120]
[340802210,1729854638597,-500.0,0.00052054,120]
[340802211,1729854638606,-500.0,0.00052054,120]
[340802212,1729854638616,-500.0,0.00052054,120]
[340802213,1729854638626,-484.65802999,0.00052054,120]
[340802214,1729854638636,-500.0,0.00052054,120]
[340802215,1729854638645,-500.0,0.00052054,2]
[340802216,1729854638656,-454.2025352,0.00052054,120]
[340802217,1729854638665,-4591.37750323,0.00052089,11]
[340802218,1729854638676,-4859.0043,0.00052099,2]
[340802219,1729854638686,-333.49463112,0.00052099,2]
[340802220,1729854638696,-227.98508768,0.00052099,24]
[340802221,1729854638706,-41322.3975291,0.00052189,11]
[340802222,1729854638716,-151.0,0.00052189,120]
[340802223,1729854638726,-151.0,0.00052189,120]
[340802224,1729854638736,-540.04228863,0.00052199,120]
[340802225,1729854638745,-506.97986953,0.00052199,120]
[340802226,1729854638755,-510.64846732,0.00052199,120]
[340802227,1729854638764,-524.40810946,0.00052199,120]
[340802228,1729854638776,-548.1338779,0.00052199,120]
[340802229,1729854638786,-525.44268845,0.00052199,120]
[340802230,1729854638797,-500.0,0.00052199,120]
[340802231,1729854638809,-500.0,0.00052199,120]
[340802232,1729854638818,-500.0,0.00052199,120]
[340802233,1729854638828,-500.0,0.00052199,120]
[340802234,1729854638838,-596.9200938,0.00052199,60]
[340802235,1729854638847,-839.54,0.00052199,7]
[340802236,1729854638857,-266.72482534,0.00052199,120]
[340802237,1729854638867,-245.93694787,0.00052199,120]
[340802238,1729854638878,-434.89139365,0.00052199,120]
[340802239,1729854638888,-573.08,0.00052199,120]
[340802240,1729854638899,-356.72242376,0.00052199,5]
[340802241,1729854638909,-536.29397376,0.00052199,120]
[340802242,1729854638919,-533.88723052,0.00052199,120]
[340802243,1729854638929,-500.0,0.00052199,120]
[340802244,1729854638939,-497.46575235,0.00052199,120]
[340802245,1729854638949,-625.28027637,0.00052199,120]
[340802246,1729854638959,-629.77964931,0.00052199,120]
[340802247,1729854638971,-500.0,0.00052199,120]
[340802248,1729854638981,-500.0,0.00052199,120]
[340802249,1729854638990,-537.77562874,0.00052199,120]
[340802250,1729854639000,-500.0,0.00052199,120]
[340802251,1729854639010,-500.0,0.00052199,120]
[340802252,1729854639021,-500.0,0.00052199,120]
[340802253,1729854639031,-1516.71,0.00052199,120]
[340802254,1729854639043,-500.0,0.00052199,120]
[340802255,1729854639053,-500.0,0.00052199,120]
[340802256,1729854639063,-619.64,0.00052199,120]
[340802257,1729854639072,-500.0,0.00052199,120]
[340802258,1729854639082,-508.09531073,0.00052199,120]
[340802259,1729854639091,-505.67740929,0.00052199,120]
[340802260,1729854639101,-512.15589394,0.00052199,120]
[340802261,1729854639111,-500.0,0.00052199,120]
[340802262,1729854639120,-503.42339525,0.00052199,120]
[340802263,1729854639129,-520.87103698,0.00052199,120]
[340802264,1729854639139,-500.0,0.00052199,120]
[340802265,1729854639149,-395.32459142,0.00052199,120]
[340802266,1729854639158,-337.26407195,0.00052199,120]
[340802267,1729854639168,-503.15574307,0.00052199,120]
[340802268,1729854639177,-315.15497997,0.00052199,120]
[340802269,1729854639187,-500.0,0.00052199,120]
[340802270,1729854639196,-352.37041048,0.00052199,120]
[340802271,1729854639206,-500.0,0.00052199,120]
[340802272,1729854639215,-1053.95,0.00052199,120]
[340802273,1729854639225,-500.0,0.00052199,120]
[340802274,1729854639235,-533.80338859,0.00052199,120]
[340802275,1729854639245,-535.29483296,0.00052199,120]
[340802276,1729854639254,-500.0,0.00052199,120]
[340802277,1729854639264,-500.0,0.00052199,120]
[340802278,1729854639274,-1511.74,0.00052199,120]
[340802279,1729854639283,-500.0,0.00052199,120]
[340802280,1729854639293,-987.78447035,0.00052199,120]
[340802281,1729854639302,-500.0,0.00052199,120]
[340802282,1729854639312,-2000.0,0.00052199,120]
[340802283,1729854639322,-502.75741495,0.00052199,120]
[340802284,1729854639332,-538.63496429,0.00052199,120]
[340802285,1729854639342,-738.25,0.00052199,120]
[340802286,1729854639351,-500.0,0.00052199,120]
[340802287,1729854639361,-507.65507214,0.00052199,120]
[340802288,1729854639371,-545.33375192,0.00052199,120]
[340802289,1729854639382,-500.0,0.00052199,120]
[340802290,1729854639392,-500.0,0.00052199,120]
[340802291,1729854639402,-500.0,0.00052199,120]
[340802292,1729854639412,-500.0,0.00052199,120]
[340802293,1729854639422,-500.0,0.00052199,120]
[340802294,1729854639431,-508.64927346,0.00052199,120]
[340802295,1729854639441,-566.09323229,0.00052199,120]
[340802296,1729854639450,-500.0,0.00052199,120]
[340802297,1729854639460,-500.0,0.00052199,120]
[340802298,1729854639469,-997.28,0.00052199,120]
[340802299,1729854639478,-500.0,0.00052199,120]
[340802300,1729854639488,-512.80791528,0.00052199,120]
[340802301,1729854639498,-500.0,0.00052199,14]
[340802302,1729854639508,-500.0,0.00052199,120]
[340802303,1729854639518,-507.00001725,0.00052199,120]
[340802304,1729854639528,-500.0,0.00052199,120]
[340802305,1729854639537,-500.0,0.00052199,120]
[340802306,1729854639547,-500.0,0.00052199,120]
[340802307,1729854639556,-500.0,0.00052199,120]
[340802308,1729854639567,-151.2573791,0.00052199,120]
[340802309,1729854639578,-480.02984652,0.00052199,120]
[340802310,1729854639587,-457.56713593,0.00052199,120]
[340802311,1729854639597,-500.0,0.00052199,120]
[340802312,1729854639609,-500.0,0.00052199,120]
[340802313,1729854639618,-408.71836129,0.00052199,120]
[340802314,1729854639628,-500.0,0.00052199,120]
[340802315,1729854639638,-496.74579572,0.00052199,120]
[340802316,1729854639649,-500.0,0.00052199,120]
[340802317,1729854639658,-500.0,0.00052199,120]
[340802318,1729854639668,-512.4559249,0.00052199,120]
[340802319,1729854639679,-1124.42,0.00052199,120]
[340802320,1729854639688,-500.0,0.00052199,120]
[340802321,1729854639698,-500.0,0.00052199,120]
[340802322,1729854639707,-393.44644604,0.00052199,120]
[340802323,1729854639717,-584.72058263,0.00052199,120]
[340802324,1729854639727,-500.0,0.00052199,120]
[340802325,1729854639737,-500.0,0.00052199,120]
[340802326,1729854639747,-500.0,0.00052199,120]
[340802327,1729854639757,-170.54060555,0.00052199,120]
[340802328,1729854639766,-500.0,0.00052199,120]
[340802329,1729854639776,-582.27,0.00052199,120]
[340802330,1729854639785,-2557.46,0.00052199,120]
[340802331,1729854639795,-500.0,0.00052199,120]
[340802332,1729854639805,-500.0,0.00052199,120]
[340802333,1729854639816,-500.0,0.00052199,120]
[340802334,1729854639825,-559.9687535,0.00052199,120]
[340802335,1729854639835,-1742.5,0.00052199,120]
[340802336,1729854639845,-500.0,0.00052199,120]
[340802337,1729854639855,-558.78541266,0.00052199,120]
[340802338,1729854639864,-500.0,0.00052199,120]
[340802341,1729854639874,-500.0,0.00052199,120]
[340802342,1729854639884,-500.0,0.00052199,120]
[340802343,1729854639895,-500.0,0.00052199,120]
[340802344,1729854639905,-2667.43,0.00052199,120]
[340802345,1729854639915,-242.95694734,0.00052199,120]
[340802346,1729854639924,-500.0,0.00052199,120]
[340802347,1729854639934,-721.56472,0.00052199,120]
[340802348,1729854639944,-721.56472,0.00052199,120]
[340802349,1729854639953,-471.766759,0.00052199,120]
[340802351,1729854639963,-471.766759,0.00052199,120]
[340802352,1729854639973,-151.0,0.00052199,120]
[340802354,1729854639982,-450.0,0.000522,2]
[340802356,1729854639992,-151.0,0.000522,120]
[340802368,1729854640115,-151.0,0.000522,120]
[340802371,1729854640141,-151.0,0.000522,120]
[340802374,1729854640158,-721.56472,0.000522,120]
[340802376,1729854640170,-721.56472,0.000522,120]
[340802378,1729854640181,-471.766759,0.000522,120]
[340802380,1729854640194,-471.766759,0.000522,120]
[340802383,1729854640207,-18365.5100129,0.00052215,11]
[340802385,1729854640218,-12500.0,0.00052225,120]
[340802387,1729854640230,-9879.75325435,0.00052225,120]
[340802390,1729854640250,-403.86110699,0.00052225,120]
[340802391,1729854640264,-2216.38563866,0.00052225,120]
[340802392,1729854640276,-333.17336138,0.00052225,120]
[340802393,1729854640297,-3651.38897728,0.00052225,120]
[340802394,1729854640311,-303.16003,0.00052225,120]
[340802395,1729854640327,-315.0,0.00052225,120]
[340802396,1729854640543,-7897.27763134,0.00052225,120]
[340802397,1729854640555,-22956.8875162,0.0005223,11]
[340802398,1729854640567,-2516.73212873,0.0005223,11]
[340802578,1729854643277,-2074.56,0.00052054,120]
[340802580,1729854643289,-6833.71959599,0.0005223,11]
[340802582,1729854643300,-721.56472,0.0005223,120]
[340802584,1729854643311,-721.56472,0.0005223,120]
[340802586,1729854643322,-471.766759,0.0005223,120]
[340802588,1729854643333,-471.766759,0.0005223,120]
[340802590,1729854643343,-154.62,0.0005223,120]
[340802593,1729854643354,-151.0,0.0005223,120]
[340802595,1729854643364,-8918.42781646,0.00052231,11]
[340802597,1729854643378,-4855.70469324,0.00052231,11]
[340802599,1729854643388,-958.94056674,0.00052231,11]
[340802603,1729854643413,-398.605,0.00052231,11]
[340802605,1729854643426,-694.02,0.00052231,11]
[340802828,1729854646097,-377.02,0.00052054,120]
[340802830,1729854646107,-562.863994,0.00052231,11]
[340802832,1729854646119,-1320.45,0.00052231,11]
[340802848,1729854646264,-2736.94846714,0.00052231,11]
[340802850,1729854646276,-1185.57,0.00052231,11]
[340802852,1729854646288,-1919.57705919,0.00052231,11]
[340802867,1729854646420,-4248.70250003,0.00052231,11]
[340802869,1729854646430,-161.41471332,0.00052239,28]
[340802871,1729854646441,-1565.7452,0.0005224,2]
[340802873,1729854646450,-500.0,0.0005224,120]
[340802875,1729854646460,-325.29291849,0.0005224,120]
[340802912,1729855099759,197.28135766,0.00042697,31]
[340802913,1729855503247,-154.42,0.00015342,2]
[340802914,1729855503275,-167.43,0.00015342,2]
[340802916,1729855667500,-217.0,0.000179,2]
[340802935,1729855700454,1000.0,0.000135,2]
[340802938,1729855724067,811.69082135,0.00013,2]
[340802940,1729855832264,-154.42,0.000247,2]
[340802942,1729855832274,-154.42,0.00034057,2]
[340802943,1729855832284,-6090.89,0.00042696,3]
[340802960,1729855838667,-4312.29331806,0.00042696,3]
[340802961,1729855838678,-14579.46775871,0.00042696,3]
[340802962,1729855838688,-154.42,0.00043414,2]
[340802963,1729855838697,-1111.08,0.00046804,2]
[340802964,1729855838708,-662.17,0.00048314,2]
[340802965,1729855838717,-150.19,0.00049855,120]
[340802966,1729855838728,-250.0,0.00049997,120]
[340802967,1729855838738,-2000.0,0.0005,120]
[340802968,1729855838748,-345.9,0.00050007,2]
[340802969,1729855838758,-200.0,0.00050042,120]
[340802970,1729855838768,-183.36,0.00050075,120]
[340802971,1729855838778,-250.0,0.0005012,120]
[340802973,1729855838788,-800.0,0.00050175,120]
[340802974,1729855838797,-369.4,0.00050261,2]
[340802975,1729855838806,-250.0,0.00050265,120]
[340802976,1729855838816,-157.28,0.00050444,120]
[340802977,1729855838826,-662.17,0.00050577,2]
[340802978,1729855838836,-182.81,0.00051006,120]
[340802979,1729855838845,-150.0,0.0005144,120]
[340802980,1729855838855,-58549.2702,0.00051526,2]
[340802981,1729855838864,-86898.20075361,0.000518,2]
[340802982,1729855838874,-1997.57217753,0.000519,15]
[340802983,1729855838883,-1000.0,0.00052,2]
[340802984,1729855838893,-12500.0,0.00052,120]
[340802985,1729855838904,-12500.0,0.00052,120]
[340802986,1729855838913,-533.80338859,0.00052054,120]
[340802987,1729855838923,-535.29483296,0.00052054,120]
[340802988,1729855838933,-352.37041048,0.00052054,120]
[340802989,1729855838943,-1988.12,0.00052054,120]
[340802990,1729855838952,-1511.74,0.00052054,120]
[340802991,1729855838962,-500.0,0.00052054,120]
[340802992,1729855838971,-2000.0,0.00052054,120]
[340802993,1729855838981,-738.25,0.00052054,120]
[340802995,1729855838991,-545.33375192,0.00052054,120]
[340802996,1729855839002,-508.64927346,0.00052054,120]
[340802997,1729855839011,-500.0,0.00052054,120]
[340802998,1729855839021,-566.09323229,0.00052054,120]
[340802999,1729855839031,-997.28,0.00052054,120]
[340803000,1729855839040,-500.0,0.00052054,120]
[340803001,1729855839051,-512.80791528,0.00052054,120]
[340803002,1729855839060,-500.0,0.00052054,120]
[340803003,1729855839070,-500.0,0.00052054,120]
[340803004,1729855839080,-151.2573791,0.00052054,120]
[340803005,1729855839093,-408.71836129,0.00052054,120]
[340803006,1729855839103,-500.0,0.00052054,14]
[340803007,1729855839113,-996.03,0.00052054,120]
[340803008,1729855839123,-500.0,0.00052054,120]
[340803009,1729855839132,-500.0,0.00052054,120]
[340803010,1729855839143,-500.0,0.00052054,120]
[340803011,1729855839156,-500.0,0.00052054,120]
[340803012,1729855839166,-302.09802653,0.00052054,120]
[340803013,1729855839176,-500.0,0.00052054,120]
[340803014,1729855839186,-500.0,0.00052054,120]
[340803015,1729855839196,-1124.42,0.00052054,120]
[340803016,1729855839205,-584.72058263,0.00052054,120]
[340803017,1729855839215,-500.0,0.00052054,120]
[340803018,1729855839225,-500.0,0.00052054,120]
[340803019,1729855839235,-500.0,0.00052054,120]
[340803020,1729855839244,-170.54060555,0.00052054,120]
[340803021,1729855839254,-500.0,0.00052054,120]
[340803022,1729855839263,-500.0,0.00052054,120]
[340803023,1729855839273,-500.0,0.00052054,120]
[340803024,1729855839282,-500.0,0.00052054,120]
[340803025,1729855839292,-500.0,0.00052054,120]
[340803026,1729855839302,-559.9687535,0.00052054,120]
[340803027,1729855839311,-500.0,0.00052054,120]
[340803028,1729855839321,-510.64951388,0.00052054,120]
[340803029,1729855839331,-511.59,0.00052054,55]
[340803030,1729855839341,-558.78541266,0.00052054,120]
[340803031,1729855839351,-500.0,0.00052054,120]
[340803032,1729855839361,-502.91774869,0.00052054,120]
[340803033,1729855839371,-500.0,0.00052054,120]
[340803034,1729855839380,-500.0,0.00052054,120]
[340803036,1729855839390,-770.73,0.00052054,120]
[340803038,1729855839400,-1742.5,0.00052054,120]
[340803039,1729855839410,-500.0,0.00052054,120]
[340803041,1729855839419,-2909.93,0.00052054,120]
[340803043,1729855839429,-500.0,0.00052054,120]
[340803045,1729855839439,-500.0,0.00052054,120]
[340803046,1729855839449,-386.80044024,0.00052054,120]
[340803048,1729855839459,-209.57950565,0.00052054,120]
[340803049,1729855839469,-502.85941943,0.00052054,120]
[340803050,1729855839479,-500.0,0.00052054,120]
[340803051,1729855839489,-567.1250219,0.00052054,120]
[340803052,1729855839498,-500.0,0.00052054,120]
[340803053,1729855839508,-554.57432054,0.00052054,120]
[340803054,1729855839519,-500.0,0.00052054,120]
[340803055,1729855839528,-5710.16,0.00052054,120]
[340803056,1729855839538,-500.0,0.00052054,120]
[340803057,1729855839548,-242.95694734,0.00052054,120]
[340803058,1729855839558,-1013.97888809,0.00052054,120]
[340803059,1729855839568,-500.0,0.00052054,120]
[340803060,1729855839578,-500.0,0.00052054,120]
[340803061,1729855839587,-500.0,0.00052054,120]
[340803062,1729855839597,-13539.12,0.00052054,120]
[340803063,1729855839607,-500.0,0.00052054,120]
[340803064,1729855839617,-382.10059712,0.00052054,120]
[340803065,1729855839626,-797.85,0.00052054,120]
[340803066,1729855839651,-500.0,0.00052054,120]
[340803067,1729855839661,-500.0,0.00052054,120]
[340803068,1729855839671,-2102.42,0.00052054,120]
[340803069,1729855839682,-2179.32,0.00052054,120]
[340803070,1729855839693,-811.03,0.00052054,21]
[340803071,1729855839702,-3762.53,0.00052054,120]
[340803072,1729855839713,-500.0,0.00052054,120]
[340803073,1729855839723,-224.28737689,0.00052054,120]
[340803074,1729855839733,-610.05691241,0.00052054,120]
[340803075,1729855839744,-755.51,0.00052054,120]
[340803076,1729855839754,-500.0,0.00052054,120]
[340803077,1729855839764,-446.37205995,0.00052054,120]
[340803078,1729855839774,-500.0,0.00052054,120]
[340803079,1729855839784,-527.99247374,0.00052054,120]
[340803080,1729855839794,-341.10075394,0.00052054,120]
[340803081,1729855839805,-2566.84,0.00052054,4]
[340803082,1729855839815,-500.0,0.00052054,120]
[340803083,1729855839824,-500.0,0.00052054,120]
[340803084,1729855839834,-500.0,0.00052054,120]
[340803085,1729855839845,-2660.49,0.00052054,120]
[340803086,1729855839855,-537.22722615,0.00052054,120]
[340803087,1729855839864,-500.0,0.00052054,120]
[340803088,1729855839871,-500.0,0.00052054,120]
[340803089,1729855839882,-500.0,0.00052054,120]
[340803090,1729855839892,-1564.44,0.00052054,120]
[340803091,1729855839901,-1000.0,0.00052054,120]
[340803092,1729855839911,-696.07,0.00052054,120]
[340803093,1729855839922,-500.0,0.00052054,120]
[340803094,1729855839930,-1817.52,0.00052054,120]
[340803095,1729855839939,-606.54,0.00052054,120]
[340803096,1729855839947,-3187.7,0.00052054,120]
[340803097,1729855839955,-182.62766643,0.00052054,120]
[340803098,1729855839964,-506.28884812,0.00052054,120]
[340803099,1729855839972,-5171.08,0.00052054,120]